Cogmind - Beta 16 @@@ ROGUE MODE // 2026.02.04 @ 20:53:30 Player: Voldy Result: Destroyed by H-77 Assassin with High-powered Shotgun Performance ------------- Evolutions (6) 3000 Regions Visited (10) 2000 Robots Destroyed (60) 300 Value Destroyed (2618) 2618 Prototype IDs (12) 240 Alien Tech Used (0) 0 Bonus (405) 405 TOTAL SCORE: 8563 Bonus ------- Follower Combat Kills 105 Aligned with FarCom 300 Cogmind --------- Core Integrity 0/1150 Matter 286/300 Energy 99/100 System Corruption 7% Temperature Cool (0) Movement Core (50) Location -4/Extension Parts ------- > --- POWER (4) -------- (None) > --- PROPULSION (4) --- (None) > --- UTILITY (8) ------ (None) > --- WEAPON (3) ------- (None) > --- INVENTORY (5) ---- Light Nuclear Core Advanced Myomer Leg Medium Storage Unit Spear Peak State ------------ > --- POWER ------------ Fission Core Light Antimatter Reactor > --- PROPULSION ------- Thunder Leg Advanced Myomer Leg Advanced Myomer Leg Antigrav System > --- UTILITY ---------- Improved Heat Sink Quantum Capacitor Quantum Capacitor Transmission Jammer Improved Focal Shield Improved Component Analysis Suite > --- WEAPON ----------- Improved KE Penetrator Enhanced Gauss Cannon Enhanced Gauss Cannon > --- INVENTORY -------- (None) [Rating: 106] Favorites ----------- Power Backup Power III Engine Backup Power III Power Core Fission Core Reactor Light Antimatter Reactor Propulsion Aluminum Leg Leg Aluminum Leg Hover Unit Antigrav System Utility Targeting Computer Device Improved Reaction Control System Storage Large Storage Unit Processor Targeting Computer Hackware System Shield Protection Utility Shielding Weapon Light Assault Rifle Energy Gun Small Laser Energy Cannon Latent Energy Streamer Ballistic Gun Light Assault Rifle Ballistic Cannon Enhanced Gauss Cannon Impact Weapon Power Maul Build | -11 -10 -10 -10 -9 -8 -7 -6 -5 -4 -4 ------- Run | Yrd Mat Min Exi Min Mat Fac Fac Fac Fac Ext Slots Evolved 12 | . . . . . 4 2 2 2 2 . Power 3 | . . . . . 1 . 1 . 1 . Propulsion 2 | . . . . . . . 1 1 . . Utility 6 | . . . . . 3 2 . 1 . . Weapon 1 | . . . . . . . . . 1 . Parts Attached 88 | . 2 5 . 3 15 12 16 15 19 1 Power 17 | . . . . . 5 1 2 7 2 . Engine 7 | . . . . . 2 1 1 3 . . Core 9 | . . . . . 3 . 1 4 1 . Reactor 1 | . . . . . . . . . 1 . Propulsion 18 | . 1 2 . 1 4 2 3 1 4 . Treads . | . . . . . . . . . . . Leg 17 | . 1 2 . 1 4 2 3 1 3 . Wheel . | . . . . . . . . . . . Hover 1 | . . . . . . . . . 1 . Flight . | . . . . . . . . . . . Utility 31 | . 1 1 . . 4 4 8 4 9 . Device 17 | . . . . . . 2 4 3 8 . Storage 2 | . . 1 . . . . 1 . . . Processor 7 | . 1 . . . 2 1 2 1 . . Hackware 1 | . . . . . . . . . 1 . Protection 4 | . . . . . 2 1 1 . . . Artifact . | . . . . . . . . . . . Weapon 22 | . . 2 . 2 2 5 3 3 4 1 Energy Gun 8 | . . 1 . . . 4 1 2 . . Energy Cannon 1 | . . . . 1 . . . . . . Ballistic Gun 8 | . . 1 . 1 2 1 1 1 1 . Ballistic Cannon 4 | . . . . . . . 1 . 3 . Launcher . | . . . . . . . . . . . Special Weapon . | . . . . . . . . . . . Impact Weapon 1 | . . . . . . . . . . 1 Slashing Weapon . | . . . . . . . . . . . Piercing Weapon . | . . . . . . . . . . . Special Melee Weapon . | . . . . . . . . . . . Unidentified Prototypes 6 | . . . . 1 . 2 . 1 2 . Parts Lost 55 | . . 3 . 2 11 14 2 17 1 5 Power 12 | . . . . . 4 1 . 6 . 1 Propulsion 13 | . . 1 . 1 4 4 . 3 . . Utility 10 | . . . . . 1 3 1 3 . 2 Weapon 20 | . . 2 . 1 2 6 1 5 1 2 Highest Loss Streak 14 | . . 3 . 2 4 4 1 14 1 4 To Critical Strikes . | . . . . . . . . . . . Average Backups 7 | . 7 10 15 14 14 12 3 3 . 4 Power 1 | . 1 1 2 2 2 . . 2 . . Propulsion 1 | . 3 2 4 3 3 2 . . . 1 Utility 2 | . 1 3 5 5 4 5 . . . . Weapon 2 | . 1 2 3 3 4 3 1 1 . 2 Tool/Special . | . . . . . . . . . . . Unused Backups 34 | . 9 12 1 2 1 4 . 2 1 2 Power 6 | . 1 1 1 1 1 . . . . 1 Propulsion 10 | . 4 4 . 1 . . . 1 . . Utility 11 | . 1 5 . . . 4 . . 1 . Weapon 7 | . 3 2 . . . . . 1 . 1 Tool/Special . | . . . . . . . . . . . Average Slot Usage (%) 74 | . 99 99 100 99 97 66 66 57 41 43 Engine 7 | . 14 14 14 14 8 2 9 5 . . Core 3 | . . . . . 8 . 2 8 5 3 Leg 16 | . 28 27 28 27 17 8 14 15 5 7 Device 6 | . . . . . . 6 12 10 9 18 Storage 6 | . 14 14 14 14 9 6 2 . . . Processor 11 | . 13 14 14 14 20 24 8 4 . . Protection 3 | . . . . . 15 7 5 . . . Energy Gun 6 | . 28 15 14 5 . 5 1 4 . . Ballistic Gun 6 | . . 12 14 22 13 2 3 4 1 . Ballistic Cannon 2 | . . . . . . . 3 . 11 2 Peak Build Rating 106 | . 8 10 11 19 38 33 52 52 106 71 Average Rating 26 | . 7 9 10 10 26 21 33 38 47 46 On Entrance 17 | 6 6 8 10 11 11 20 2 49 . 71 Avg Prop Armor Cover (%) 3 | . . . . . . . . . 3 5 Naked Turns 85 | . . . . . . 10 . 24 . 51 Heaviest Build 110 | 12 12 28 28 28 47 28 110 26 59 36 Greatest Support 83 | 20 20 20 20 20 35 30 50 65 83 53 Greatest Overweight (x) 12 | . . 1 1 1 1 8 3 4 12 . Average Overweight (x) . | . . . 1 1 . 1 . . 2 . Largest Inventory Capacity 25 | . 8 15 15 15 15 15 25 5 5 5 Average Capacity 11 | . 8 12 15 15 15 14 13 5 5 5 Most Carried 15 | . 8 15 15 15 15 15 5 5 5 5 Average Carried 7 | . 7 11 14 14 14 12 3 3 . 4 Final Capacity 15 | 8 8 15 15 15 15 15 5 5 5 5 Final Carried 15 | 6 8 15 15 15 15 11 5 1 5 4 Class Distribution -------------------- 44% | Scavenger-Mutant 44% | Mutant 10% | Skirmisher Dominant Class ---------------- Mutant | -10/Materials Scavenger-Mutant | -10/Mines Scavenger-Mutant | -10/Exiles Scavenger-Mutant | -9/Mines Scavenger-Mutant | -8/Materials Mutant | -7/Factory Mutant | -6/Factory Scavenger-Mutant | -5/Factory Skirmisher | -4/Factory Mutant | -4/Extension Resources | -11 -10 -10 -10 -9 -8 -7 -6 -5 -4 -4 ----------- Run | Yrd Mat Min Exi Min Mat Fac Fac Fac Fac Ext Matter Collected 1729 | 188 124 65 . 46 204 106 277 320 144 255 Remotely . | . . . . . . . . . . . Salvage Created 2726 | . 222 411 . 79 669 284 387 423 94 157 Parts 152 | . 10 23 . 3 40 15 22 31 5 3 Haulers Intercepted 1 | . . . . . . . 1 . . . Recyclers Shooed 3 | . . . . . . 1 . 1 1 . Parts Field Recycled . | . . . . . . . . . . . Retrieved Matter . | . . . . . . . . . . . Parts Self-Destructed . | . . . . . . . . . . . Prevented . | . . . . . . . . . . . Parts Restored . | . . . . . . . . . . . Kills | -11 -10 -10 -10 -9 -8 -7 -6 -5 -4 -4 ------- Run | Yrd Mat Min Exi Min Mat Fac Fac Fac Fac Ext Combat Hostiles Destroyed 53 | . 4 9 . 2 14 6 7 7 3 1 Melee 1 | . . . . . . . . . . 1 Guns 38 | . 4 8 . 2 10 6 2 6 . . Cannons 7 | . . . . . . . 4 . 3 . AOE 5 | . . 1 . . 3 . 1 . . . Classes Destroyed 12 | . 2 3 . . 2 1 3 1 . . Worker 1 | . . 1 . . . . . . . . Builder 1 | . . . . . . . 1 . . . Hauler 1 | . . . . . . . 1 . . . Recycler 2 | . . 1 . . . . . . . 1 Mechanic 1 | . . . . . . . 1 . . . Watcher 1 | . 1 . . . . . . . . . Swarmer 7 | . . 3 . . 3 . . . . 1 Grunt 28 | . 4 6 . 2 6 4 5 1 . . Sentry 5 | . . . . . 4 . . . 1 . Specialist 2 | . . . . . . . . 2 . . Hunter 3 | . . . . . 1 . . 2 . . Programmer 8 | . . . . . . 2 2 2 2 . Best Kill Streak 4 | . 1 4 . 2 3 2 3 2 2 2 Combat Bots Only 3 | . 1 3 . 2 3 2 2 2 2 1 Max Kills in Single Turn 3 | . 1 2 . 1 2 1 3 1 1 1 Gunslinging 1 | . . 1 . . . . . . . . Exploded 2 | . . 1 . . 2 . 1 . . . Melee 1 | . . . . . . . . . . 1 Uniques/NPCs Destroyed . | . . . . . . . . . . . Combat | -11 -10 -10 -10 -9 -8 -7 -6 -5 -4 -4 -------- Run | Yrd Mat Min Exi Min Mat Fac Fac Fac Fac Ext Hostile Shots Fired 671 | . 19 43 . 19 80 140 65 154 27 124 Missed 179 | . 1 11 . 3 17 34 26 42 7 38 Hits 492 | . 18 32 . 16 63 106 39 112 20 86 Projectile 492 | . 18 32 . 16 63 106 39 112 20 86 Critical Strikes 22 | . . 1 . 2 2 7 3 2 . 5 Actively Blocked 2 | . . . . . 1 1 . . . . Part Disruptions 3 | . . . . . 1 1 . . 1 . Damage Taken 8346 | . 224 430 . 216 1000 1624 876 1646 611 1719 Core 2824 | . 74 63 . 72 176 578 160 551 . 1150 Absorbed by Shields 231 | . . . . . . . 231 . . . Redirected to Shielding 110 | . . . . . 62 48 . . . . Ignored by Resistances 155 | . . . . . . . . 74 20 61 Core Remaining (%) 54 | 100 . . . 16 68 17 81 44 . . Volleys Fired 224 | . 17 24 . 11 49 43 32 39 9 . Largest 3 | . 2 2 . 2 2 2 2 2 3 . Hottest 141 | . 80 80 . 60 80 101 70 80 141 . Shots Fired 392 | . 34 48 . 22 84 61 63 56 24 . Gun 345 | . 34 48 . 22 80 61 41 56 3 . Cannon 47 | . . . . . 4 . 22 . 21 . Launcher . | . . . . . . . . . . . Special . | . . . . . . . . . . . Kinetic 218 | . . 15 . 17 80 11 54 17 24 . Thermal 149 | . 34 18 . . . 49 9 39 . . Explosive . | . . . . . . . . . . . Electromagnetic 25 | . . 15 . 5 4 1 . . . . Robot Hit Streak 20 | . 4 10 . 9 20 18 8 12 13 . Robot Miss Streak 4 | . 2 2 . 2 1 2 4 2 2 . Penetration Max . | . . . . . . . . . . . Secondary Targets 3 | . . 3 . . . . . . . . Max Gunslinging Chain 1 | . . 1 . . . . . . . . Shots Hit Robots 296 | . 19 37 . 19 69 50 41 46 12 3 Core Hits 137 | . 10 20 . 10 31 16 22 21 4 3 Critical Kills 2 | . . . . . 2 . . . . . Critical Parts Destroyed . | . . . . . . . . . . . Critical Strikes 8 | . . . . . 2 . 4 . 2 . Destroy 2 | . . . . . 2 . . . . . Blast 6 | . . . . . . . 4 . 2 . Melee Attacks 6 | . . . . . . . . . . 6 Impact 6 | . . . . . . . . . . 6 Slashing . | . . . . . . . . . . . Piercing . | . . . . . . . . . . . Sneak Attacks 1 | . . . . . . . . . . 1 Combat Hostiles . | . . . . . . . . . . . Follow-up Attacks . | . . . . . . . . . . . Damage Inflicted 5854 | . 220 481 . 263 1126 802 1415 820 473 254 Guns 3492 | . 213 402 . 191 490 789 566 815 26 . Cannons 934 | . . . . . 24 . 494 . 416 . Explosions 1086 | . . 79 . 57 608 . 342 . . . Melee 193 | . . . . . . . . . . 193 Ramming 149 | . 7 . . 15 4 13 13 5 31 61 Kinetic 2539 | . . 87 . 139 490 145 971 265 442 . Thermal 1757 | . 213 219 . 57 . 629 89 550 . . Explosive 342 | . . . . . . . 342 . . . Electromagnetic 874 | . . 175 . 52 632 15 . . . . Impact 193 | . . . . . . . . . . 193 Slashing . | . . . . . . . . . . . Piercing . | . . . . . . . . . . . Highest Corruption 9 | . . . . . 9 6 1 4 7 7 Average Corruption 3 | . . . . . 5 3 1 1 6 7 Corruption Purged . | . . . . . . . . . . . Corruption Blocked . | . . . . . . . . . . . Effects 64 | . . . . . 8 15 7 5 17 12 Message Errors 13 | . . . . . 2 5 3 . 2 1 Matter Fused 12 | . . . . . 2 1 1 1 6 1 Heat Flow Errors 10 | . . . . . 2 3 . 2 1 2 Energy Discharges 5 | . . . . . . 1 1 . . 3 Parts Rejected 3 | . . . . . . 1 . . . 2 Parts Fused 1 | . . . . . . . . . . 1 Data Loss (minor) 12 | . . . . . 1 3 2 . 5 1 Data Loss (major) 3 | . . . . . 1 1 . 1 . . Misfires 2 | . . . . . . . . 1 1 . Alerts 2 | . . . . . . . . . 1 1 Weapon Failures 1 | . . . . . . . . . 1 . Overload Shots . | . . . . . . . . . . . Overflow Damage 109 | . . . . . . . 22 . 32 55 Projectiles 30 | . . . . . . . 22 . 8 . Explosions 24 | . . . . . . . . . 24 . Melee 55 | . . . . . . . . . . 55 Knockbacks 5 | . . . . . . . 3 . 1 1 Impact 1 | . . . . . . . . . . 1 Kinetic 4 | . . . . . . . 3 . 1 . Secondary . | . . . . . . . . . . . Self-Inflicted Damage 384 | . . 35 . 16 114 . . 2 198 19 Shots 7 | . . 1 . 1 3 . . . 2 . Rammed 13 | . . . . . . . . 2 1 10 Targets Rammed 34 | . 3 1 . 2 1 2 4 2 5 14 Kicked 21 | . 3 1 . 2 1 2 4 . 4 4 Crushed . | . . . . . . . . . . . Highest Temperature 335 | . 303 240 . 85 217 253 11 247 254 335 Average Temperature 64 | . 117 75 . 33 41 65 6 47 64 127 Received Heat Transfer 2667 | . 126 189 . 153 243 729 147 489 27 564 Effects 4 | . 1 . . . . 2 . . 1 . Energy Bleed 1 | . . . . . . . . . 1 . Interference 3 | . 1 . . . . 2 . . . . Siege Activations . | . . . . . . . . . . . Martial Activations . | . . . . . . . . . . . Shielding Activations . | . . . . . . . . . . . Robots Disrupted . | . . . . . . . . . . . Combat Hostiles . | . . . . . . . . . . . Robots Corrupted 1 | . . . . . 1 . . . . . Combat Hostiles 1 | . . . . . 1 . . . . . Parts Fried . | . . . . . . . . . . . Impact Corruptions 2 | . . . . . . . . . . 2 Robots Melted 1 | . . . . . . . . 1 . . Combat Hostiles 1 | . . . . . . . . 1 . . Parts Melted 7 | . 2 . . . . 3 . 2 . . Heat Transferred 3762 | . 475 325 . 100 . 1204 259 1399 . . Parts Sabotaged . | . . . . . . . . . . . Parts Stolen . | . . . . . . . . . . . Parts Stripped . | . . . . . . . . . . . Power Chain Reactions 3 | . . 1 . 1 1 . . . . . Latent Energy Used 533 | . . . . . 533 . . . . . LE Corruption 9 | . . . . . 9 . . . . . Alert | -11 -10 -10 -10 -9 -8 -7 -6 -5 -4 -4 ------- Run | Yrd Mat Min Exi Min Mat Fac Fac Fac Fac Ext Maximum Alert Level . | . . . . . . . . . . . Low Security (%) 100 | . 100 100 . 100 100 100 100 100 100 100 Level 1 . | . . . . . . . . . . . Level 2 . | . . . . . . . . . . . Level 3 . | . . . . . . . . . . . Level 4 . | . . . . . . . . . . . Level 5 . | . . . . . . . . . . . High Security . | . . . . . . . . . . . Max Security . | . . . . . . . . . . . Peak Influence 148 | . 72 88 . 71 102 45 148 42 100 72 Initial 28 | . . 19 . . . 28 . 4 5 4 Average 23 | . 9 40 . 12 33 4 44 5 28 15 Influence Increases 2056 | . 170 234 . 150 425 151 306 206 247 167 Destroy 0b10 Robot/C 1140 | . 80 180 . 100 280 120 140 140 60 40 Destroy 0b10 Robot/NC 35 | . 5 10 . . . . 15 . . 5 Destroy Leader 284 | . 22 40 . 20 80 30 32 40 20 . Allied During Kill 12 | . . . . 10 . . . . . 2 Successful Hack 129 | . 18 . . . 9 . 30 26 16 30 Disable Machine 120 | . . . . 15 15 . 60 . 30 . Destroy Structure 156 | . . 4 . 5 26 1 14 . 106 . Lose Combat Pursuer 180 | . 45 . . . 15 . 15 . 15 90 Influence Decreases 2019 | . 120 284 . 150 363 213 296 204 250 139 Entered New Map 83 | . . 31 . . . 34 . 6 7 5 Time Decay 1591 | . 120 223 . 110 284 129 276 132 233 84 Lost Part 305 | . . 30 . 20 79 50 20 66 10 30 Lost Ally 40 | . . . . 20 . . . . . 20 Squads Dispatched 20 | . 1 . . . . 2 8 5 2 2 Investigation 2 | . . . . . . . . 2 . . Extermination 8 | . . . . . . 2 3 1 2 . Reinforcement 10 | . 1 . . . . . 5 2 . 2 Assault . | . . . . . . . . . . . Garrison . | . . . . . . . . . . . Intercept . | . . . . . . . . . . . Searches Triggered . | . . . . . . . . . . . Construction Impeded 2 | . . . . . . . 1 . . 1 Haulers Reinforced . | . . . . . . . . . . . Active Scanning Responses . | . . . . . . . . . . . Cargo Convoy Interrupts . | . . . . . . . . . . . Stealth | -11 -10 -10 -10 -9 -8 -7 -6 -5 -4 -4 --------- Run | Yrd Mat Min Exi Min Mat Fac Fac Fac Fac Ext Distress Signals 4 | . 2 . . . 1 . 1 . . . Communications Jammed 4 | . . . . . . . . . . 4 Distress Signals 4 | . . . . . . . . . . 4 Times Spotted 108 | . 11 11 . 5 20 10 14 11 3 23 Peak Tracking Total 11 | . 3 3 . 2 5 4 3 2 2 11 Tactical Retreats 8 | . 2 . . . 1 . 1 . 1 3 Traps | -11 -10 -10 -10 -9 -8 -7 -6 -5 -4 -4 ------- Run | Yrd Mat Min Exi Min Mat Fac Fac Fac Fac Ext Traps Triggered 5 | . 1 . . . . 1 . . 3 . Indirectly . | . . . . . . . . . . . Trap Hack Attempts . | . . . . . . . . . . . Triggered . | . . . . . . . . . . . Disarmed . | . . . . . . . . . . . Reprogrammed . | . . . . . . . . . . . Reused . | . . . . . . . . . . . Traps Extracted . | . . . . . . . . . . . Installed . | . . . . . . . . . . . Triggered . | . . . . . . . . . . . Most Traps Carried 1 | . . . . 1 1 . . . . . Machines | -11 -10 -10 -10 -9 -8 -7 -6 -5 -4 -4 ---------- Run | Yrd Mat Min Exi Min Mat Fac Fac Fac Fac Ext Machines Disabled 8 | . . . . 1 1 . 4 . 2 . Max in Single Turn 4 | . . . . 1 1 . 4 . 2 . Machines Repaired . | . . . . . . . . . . . Machines Dismantled . | . . . . . . . . . . . Machines Sabotaged . | . . . . . . . . . . . Overloaded Fab Kills . | . . . . . . . . . . . Hacking | -11 -10 -10 -10 -9 -8 -7 -6 -5 -4 -4 --------- Run | Yrd Mat Min Exi Min Mat Fac Fac Fac Fac Ext Machines Accessed 24 | . 4 . . . 4 2 5 4 3 2 Terminals 17 | . 4 . . . 4 2 3 1 1 2 Fabricators 1 | . . . . . . . . 1 . . Repair Stations 4 | . . . . . . . 1 2 1 . Recycling Units . | . . . . . . . . . . . Scanalyzers 2 | . . . . . . . 1 . 1 . Garrison Access . | . . . . . . . . . . . Total Hacks 59 | . 10 . . . 12 2 12 11 8 4 Successful 26 | . 4 . . . 5 1 6 3 4 3 Failed 33 | . 6 . . . 7 1 6 8 4 1 Catastrophic 9 | . 3 . . . 3 . . 1 2 . Database Lockouts . | . . . . . . . . . . . Manual 23 | . 9 . 1 . 4 1 4 1 3 . Terminals 40 | . 10 . . . 12 2 6 3 3 4 Fabricators 2 | . . . . . . . . 2 . . Repair Stations 10 | . . . . . . . 1 6 3 . Recycling Units . | . . . . . . . . . . . Scanalyzers 7 | . . . . . . . 5 . 2 . Garrison Access . | . . . . . . . . . . . Terminal Hacks 17 | . 4 . . . 5 1 2 1 1 3 Record 2 | . . . . . 2 . . . . . Prototype ID Bank 3 | . 1 . . . 1 . 1 . . . Open Door 1 | . . . . . . . . . . 1 Open DSF 1 | . . . . . . 1 . . . . Branch Access Points 1 | . 1 . . . . . . . . . Emergency Access Points 2 | . . . . . 1 . . . 1 . Terminal Index 1 | . . . . . . . . 1 . . Alert Level 1 | . . . . . 1 . . . . . Locate Traps 1 | . 1 . . . . . . . . . Patrol Status 1 | . . . . . . . . . . 1 Transport Status 1 | . 1 . . . . . . . . . Hauler Manifests 2 | . . . . . . . 1 . . 1 Fabricator Hacks 1 | . . . . . . . . 1 . . Network Status 1 | . . . . . . . . 1 . . Repair Station Hacks 3 | . . . . . . . 1 1 1 . Scan Component 2 | . . . . . . . . 1 1 . Refit 1 | . . . . . . . 1 . . . Recycling Unit Hacks . | . . . . . . . . . . . Scanalyzer 5 | . . . . . . . 3 . 2 . Retrieve Study 5 | . . . . . . . 3 . 2 . Garrison Access Hacks . | . . . . . . . . . . . Unauthorized Hacks . | . . . . . . . . . . . Terminals . | . . . . . . . . . . . Fabricators . | . . . . . . . . . . . Repair Stations . | . . . . . . . . . . . Recycling Units . | . . . . . . . . . . . Scanalyzers . | . . . . . . . . . . . Garrison Access . | . . . . . . . . . . . Data Cores Recovered . | . . . . . . . . . . . Used . | . . . . . . . . . . . Hacking Detections 23 | . 4 . . . 4 2 4 4 3 2 Full Trace Events 2 | . . . . . . . . 2 . . Feedback Events . | . . . . . . . . . . . Feedback Blocked . | . . . . . . . . . . . Robot Schematics Acquired . | . . . . . . . . . . . Robots Built . | . . . . . . . . . . . Authchips . | . . . . . . . . . . . Time . | . . . . . . . . . . . Total Robot Build Rating . | . . . . . . . . . . . Part Schematics Acquired . | . . . . . . . . . . . Parts Built . | . . . . . . . . . . . Authchips . | . . . . . . . . . . . Time . | . . . . . . . . . . . Total Part Build Rating . | . . . . . . . . . . . Part Studies Acquired 5 | . . . . . . . 3 . 2 . Parts Repaired . | . . . . . . . . . . . Time . | . . . . . . . . . . . Parts Recycled . | . . . . . . . . . . . Recycled Matter . | . . . . . . . . . . . Retrieved Matter . | . . . . . . . . . . . Retrieved Components . | . . . . . . . . . . . Parts Scanalyzed . | . . . . . . . . . . . Part Schematics Acquired . | . . . . . . . . . . . Parts Damaged . | . . . . . . . . . . . Bothacking | -11 -10 -10 -10 -9 -8 -7 -6 -5 -4 -4 ------------ Run | Yrd Mat Min Exi Min Mat Fac Fac Fac Fac Ext Used RIF Installer . | . . . . . . . . . . . Robots Hacked . | . . . . . . . . . . . Non-combat . | . . . . . . . . . . . Combat . | . . . . . . . . . . . Robot Hacks Applied . | . . . . . . . . . . . Relay Couplers Released . | . . . . . . . . . . . Fabnet Peak Effective % . | . . . . . . . . . . . Robots Rewired . | . . . . . . . . . . . Allies Hacked . | . . . . . . . . . . . Hacks Repelled . | . . . . . . . . . . . Allies | -11 -10 -10 -10 -9 -8 -7 -6 -5 -4 -4 -------- Run | Yrd Mat Min Exi Min Mat Fac Fac Fac Fac Ext Total Allies 3 | . . . . 2 . . . . . 1 Largest Group 2 | . . . . 2 1 . . . . 1 Highest-Rated Group 45 | . . . . 45 14 . . . . 29 Highest-Rated Ally 31 | . . . . 31 14 . . . . 29 Total Orders . | . . . . . . . . . . . Ally Attacks 8 | . . . . 6 . . . . . 2 Total Damage 117 | . . . . 63 . . . . . 54 Kills 4 | . . . . 3 . . . . . 1 Allies Corrupted . | . . . . . . . . . . . Allies Melted . | . . . . . . . . . . . Intel | -11 -10 -10 -10 -9 -8 -7 -6 -5 -4 -4 ------- Run | Yrd Mat Min Exi Min Mat Fac Fac Fac Fac Ext Active Infowar (turns) 4622 | . 737 589 429 610 877 656 . . 517 207 Optics 3898 | . 737 589 429 610 877 656 . . . . Jamming 724 | . . . . . . . . . 517 207 Robot Analysis Total . | . . . . . . . . . . . Derelict Logs Recovered 1 | . . . . 1 . . . . . . Drone Launches . | . . . . . . . . . . . Drone Recoveries . | . . . . . . . . . . . Exploration | -11 -10 -10 -10 -9 -8 -7 -6 -5 -4 -4 ------------- Run | Yrd Mat Min Exi Min Mat Fac Fac Fac Fac Ext Turns Passed 8167 | . 806 589 429 610 877 1041 1629 850 1051 285 Spaces Moved 3788 | 1 578 289 226 295 378 468 645 307 373 228 Core 299 | . . . . . . 105 . 50 66 78 Treads . | . . . . . . . . . . . Legs 3440 | 1 578 289 226 295 378 363 645 257 258 150 Wheels . | . . . . . . . . . . . Hover 49 | . . . . . . . . . 49 . Flight . | . . . . . . . . . . . Fastest Speed 50 | 120 120 120 190 190 125 50 108 50 120 50 Average Speed 162 | 120 120 160 190 190 180 176 173 100 231 96 Slowest Speed 650 | 120 120 190 190 190 200 450 335 250 650 120 Overloaded Moves . | . . . . . . . . . . . Propulsion Burnouts . | . . . . . . . . . . . Robots Hopped . | . . . . . . . . . . . Potential Cave-ins . | . . . . . . . . . . . Cave-ins Triggered . | . . . . . . . . . . . Exploration Rate (%) 32 | 2 77 54 63 41 34 15 17 7 10 39 Regions Visited 10 Branch Regions 4 Pre-discovered Areas . | . . . . . . . . . . . Known Exits Taken 1 | . 1 . . . . . . . . . Unknown Exits Taken 9 | 1 . 1 1 1 1 1 1 1 1 . Scrap Searched 2 | . . 1 . 1 . . . . . . Spaces Dug . | . . . . . . . . . . . Terrain Destroyed 108 | . . 4 . 5 28 . 14 . 57 . Melee . | . . . . . . . . . . . Projectile 14 | . . . . . . . 2 . 12 . AOE 94 | . . 4 . 5 28 . 12 . 45 . Terrain Rammed . | . . . . . . . . . . . Walls Destroyed . | . . . . . . . . . . . Machines Disabled . | . . . . . . . . . . . Actions | -11 -10 -10 -10 -9 -8 -7 -6 -5 -4 -4 --------- Run | Yrd Mat Min Exi Min Mat Fac Fac Fac Fac Ext Total 5448 | . 660 375 227 326 508 633 1100 799 539 281 Wait 1085 | . 47 19 . 9 41 94 381 385 86 23 Move 3778 | . 577 288 225 294 377 467 644 306 372 228 Hop . | . . . . . . . . . . . Pick Up 139 | . 9 24 1 4 18 8 17 29 26 3 Fast Attach . | . . . . . . . . . . . Attach 106 | . 2 4 . 3 16 14 17 25 21 4 Detach 10 | . . . . 1 1 3 2 1 2 . Swap 1 | . . 1 . . . . . . . . Drop 47 | . 5 14 1 2 5 2 3 12 3 . Fire 224 | . 17 24 . 11 49 43 32 39 9 . Melee 6 | . . . . . . . . . . 6 Ram 13 | . . . . . . . . 2 1 10 Kick 21 | . 3 1 . 2 1 2 4 . 4 4 Crush . | . . . . . . . . . . . Escape Stasis 15 | . . . . . . . . . 15 . Rewire 3 | . . . . . . . . . . 3 Trap . | . . . . . . . . . . . Miscellaneous . | . . . . . . . . . . . Route ------- -11/Scrapyard -10/Materials (discovered 4 exits: [*Mat x3] / *Min) -10/Mines (discovered 2 exits: [*Mat] / *Exi) -10/Exiles (discovered 2 exits: [*Min x2]) -9/Mines -8/Materials -7/Factory -6/Factory -5/Factory -4/Factory -4/Extension History --------- Turn | Location | Event 1 | -11/Scrapyard | Discovered new exit (range 0) 1 | -11/Scrapyard | Entered Materials 2 | -10/Materials | Met a group of wandering Federalists 94 | -10/Materials | Discovered new exit (range 18) 143 | -10/Materials | Lost 4 allies 292 | -10/Materials | Discovered new exit (range 4) 317 | -10/Materials | Build established: Mutant 488 | -10/Materials | Discovered new exit (range 18) 579 | -10/Materials | Discovered new exit (range 8) 600 | -10/Materials | Identified exit to Mines 807 | -10/Materials | Entered Mines 837 | -10/Mines | Met a Derelict bent on vengeance 867 | -10/Mines | Core integrity fell below 50% 889 | -10/Mines | Lost 3 parts (1n2w) 916 | -10/Mines | Discovered new exit (range 5) 994 | -10/Mines | Joined a pair of Derelicts in attacking an 0b10 outpost 1168 | -10/Mines | Build established: Scavenger-Mutant 1386 | -10/Mines | Deemed a non-threat by the Exiles lab entrance 1388 | -10/Mines | Discovered new exit (range 5) 1396 | -10/Mines | Entered Exiles 1421 | -10/Exiles | Discovered new exit (range 16) 1444 | -10/Exiles | Met 8R-AWN 1474 | -10/Exiles | Met EX-HEX 1531 | -10/Exiles | Met EX-BIN 1562 | -10/Exiles | Aligned with FarCom system 1564 | -10/Exiles | Given EX-Vault access code 1607 | -10/Exiles | Opened EX-Vault 1644 | -10/Exiles | Found Prototype Energy Cannon 1685 | -10/Exiles | Warned to stay clear of 0b10 Research branches 1686 | -10/Exiles | Exiles lab attacked by MAIN.C 1805 | -10/Exiles | Discovered new exit (range 14) 1825 | -10/Exiles | Left Exiles lab with Latent Energy Streamer 1825 | -10/Exiles | Entered Mines 1837 | -9/Mines | Learned Materials stockpile data 2070 | -9/Mines | Identified Latent Energy Streamer 2081 | -9/Mines | Core integrity fell below 20% 2118 | -9/Mines | Discovered new exit (range 11) 2249 | -9/Mines | Found a hidden stash of uninstalled traps 2435 | -9/Mines | Entered Materials 2435 | -8/Materials | Accompanied by 1 ally 2435 | -8/Materials | Evolved 4 slots: Power x1, Utility x3 2633 | -8/Materials | Lost 4 parts (1p2n1w) 3220 | -8/Materials | Discovered new exit (range 4) 3280 | -8/Materials | Lost 3 parts (1p1n1w) 3312 | -8/Materials | Entered Factory 3312 | -7/Factory | Evolved 2 slots: Utility x2 3361 | -7/Factory | Identified exit to DSF 3660 | -7/Factory | Lost 3 parts (1p1u1w) 3810 | -7/Factory | Build established: Mutant 3898 | -7/Factory | Lost 3 parts (1n2w) 4217 | -7/Factory | Core integrity fell below 50% 4339 | -7/Factory | Core integrity fell below 20% 4343 | -7/Factory | Released all parts (4) 4350 | -7/Factory | Discovered new exit (range 5) 4353 | -7/Factory | Entered another Factory area 4353 | -6/Factory | Evolved 2 slots: Power x1, Propulsion x1 4372 | -6/Factory | Lost 4 parts (2n2u) 5957 | -6/Factory | Discovered new exit (range 5) 5982 | -6/Factory | Entered another Factory area 5982 | -5/Factory | Evolved 2 slots: Propulsion x1, Utility x1 6022 | -5/Factory | Build established: Scavenger-Mutant 6024 | -5/Factory | Released all parts (15) 6803 | -5/Factory | Lost 14 parts (5p3n3u3w) 6812 | -5/Factory | Core integrity fell below 50% 6815 | -5/Factory | Released all parts (3) 6828 | -5/Factory | Discovered new exit (range 8) 6832 | -5/Factory | Entered another Factory area 6832 | -4/Factory | Evolved 2 slots: Power x1, Weapon x1 7157 | -4/Factory | Build established: Skirmisher 7562 | -4/Factory | Found Quantum Capacitor 7565 | -4/Factory | Found Quantum Capacitor 7754 | -4/Factory | Discovered new exit (range 16) 7883 | -4/Factory | Entered Extension 8024 | -4/Extension | Build established: Mutant 8090 | -4/Extension | Released all parts (9) 8094 | -4/Extension | Lost 4 parts (1p2u1w) 8113 | -4/Extension | Spotted B-86 Titan 8151 | -4/Extension | Core integrity fell below 50% 8153 | -4/Extension | Spotted B-86 Titan 8161 | -4/Extension | Core integrity fell below 20% 8168 | -4/Extension | Destroyed by H-77 Assassin with High-powered Shotgun Last Messages --------------- 08153_ Power Maul destroyed. 08154_ Acquired Corrupted Lgt. Nuclear Core. 08155_ Penetrated by Slug. 08156_ Acquired Med. Storage Unit. 08156_ Knocked back. 08156_ Penetrated by Slug. 08156_ Slug penetrates Y-64 Sentinel. 08157_ B-86 Titan activates siege mode. 08158_ Slammed into B-86 Titan. 08159_ Slug penetrates Machine. 08160_ Penetrated by Slug. 08162_ U-05 Engineer builds a Wall. 08163_ Slug penetrates Wall. 08163_ Slug penetrates W-44 Eye. 08163_ Penetrated by Slug. 08164_ U-05 Engineer builds a Wall. 08165_ Penetrated by Slug. 08166_ U-05 Engineer builds a Wall. 08167_ Acquired 7 matter. 08168_ Penetrated by Slug. Map ----- +----------------------------------------------------+ | +# #??# #????##+##???????????? #?????? | | #??# ######] ############### #?????? | | #??# [!=*=!! #?????? | | #??######## ######## ######### #?????? | | ########?????????#####??????# T#??????# #?????? | | ????????????????????????????#"##??????# #?????? | | ??????????????????????????????????????# #?????? | | ??????????????????????????????????????# #?????? | | ??????????????????????????????????????# #?????? | | ??????????????????????????????????????# #?????? | | ??????????????????????????????????????#### #?????? | | ???????????????????????????????????????### #?????? | | ?????????????????????????????????????###T# #?????? | | ?????????????????????????????????????# #?????? | | ?????????????????????????????????????##### #?????? | | ?????????????????????????????????????????# #?????? | | ?????????????????????????????????????????# #?????? | | ?????????????????????????????????????????#%#?????? | | ?????????????????????????????????????????#=#???#?? | | ???????????????????????????????????????### ### ## | | ???????????????????????????????????????#"" " | | ???????????????????????????????????????#%" " | | ???????????????????????????????????????# BB | | ??????????????????????????????????????## BB | | ?????????????????######################" | | ?????????? h @ YY | | ?????????? w | | ?????????? h | | ??????????? | | ??????????? R u k | | ????????????############################ | | ???????????????????????????????????????# | | ???????????????????????????????????????# | | ???????????????????????????????????????# | | ???????????????????????????????????????# | | ???????????????????????????????????????######T#""" | | ?????????????????????????????????????????????##??? | | ?????????????????????????????????????????????????? | | | | | | | | | | | | | | | | | | | | | | | | | +----------------------------------------------------+ Best States ------------- Heat Dissipation 71 Energy Generation 37 Energy Capacity 380 Matter Stores 300 Matter Capacity 300 Sight Range 18 Terrain Scan Density 210 Jamming Range 16 Armor Coverage 225 Resistance: KI 25 Resistance: EM 25 Utility Shielding 33 Weapon Shielding 33 Weapon Cycling 15 Evasion (%) 70 Targeting Accuracy 10 Target Analysis 5 Defensive Hacking 10 Item Schematics ----------------- None Robot Schematics ------------------ None Fabricated ------------ Nothing Repaired ---------- Nothing Studied --------- Carbon-fiber Leg | -6/Factory | Hacked Hvy. Machine Gun | -6/Factory | Hacked Imp. Titanium Leg | -6/Factory | Hacked Fission Core | -4/Factory | Hacked Enh. Gauss Cannon | -4/Factory | Hacked Alien Tech Used ----------------- None Achievements -------------- Live, Flee, And Rebuild Streaker Challenges ------------ None Game ------ Seed AngularDeflectorDevice Manual? 0 Play Time 01:06:05 Cumulative 12.7 hours Start 2026.02.04 @ 14:18:13 End 2026.02.04 @ 20:53:30 Sessions 3 Manual Loads 0 Difficulty Rogue Special Mode None Game No. 26 Rogue 17 Adventurer 9 Explorer 0 Win Type - Total 0 Types 0/0/0/0/0/0/0/0/0/0 Lore% 15 Gallery% 17 Achievement% 15 Wizard Run 0 Options --------- Layout 0 ASCII 0 Keyboard 1 Movement Numpad Keybinds 0 Fullscreen 2 Font 18/SmallcapsGlow Map View 76x50 Zoom Use 0% Tactical HUD 1 Map Filters NONE Filters NONE Steam 1 RUN: d2368af7-5e4e-4fdf-9fd9-669fec40b0cf